[Event "GER-ch Youth U10 2020"]
[Site "Willingen"]
[Date "2020.10.30"]
[Round "6.25"]
[White "Hellenbroich, Hanno"]
[Black "Ehrath, Hendrik"]
[Result "1-0"]
[ECO "C54"]
[WhiteElo "1291"]
[BlackElo "1193"]
[Annotator "NA RC"]
[PlyCount "77"]
[EventDate "2020.10.27"]
[EventType "swiss"]
[EventRounds "7"]
[EventCountry "GER"]
[SourceTitle "playchess.com"]
[Source "ChessBase"]
[SourceQuality "1"]
[TimeControl "40/4500+30:900+30"]

1. e4 {[%emt 0:00:00]} e5 {[%emt 0:00:03]} 2. Nf3 {[%emt 0:00:00]} Nc6 {[%emt 0:00:15]} 3. Bc4 {[%emt 0:00:30]} Bc5 {[%emt 0:00:56]} 4. c3 {[%emt 0:00:12]} Nf6 {[%emt 0:00:49]} 5. d3 {[%emt 0:00:15]} d6 {[%emt 0:00:53]} 6. O-O {[%emt 0:01:23]} a6 {[%emt 0:00:29]} 7. Bb3 {[%emt 0:00:21]} Ba7 {[%emt 0:01:01]} 8. d4 {[%emt 0:05:08]} Bg4 {[%emt 0:01:22]} 9. d5 {[%emt 0:07:28]} Ne7 {[%emt 0:03:07]} 10. Bc2 {[%emt 0:04:53]} O-O {[%emt 0:11:04]} 11. Nbd2 {[%emt 0:06:41]} Ng6 {[%emt 0:02:31]} 12. h3 {[%emt 0:02:46]} Bd7 {[%emt 0:09:30]} 13. Re1 {[%emt 0:03:37]} Qc8 {[%emt 0:01:31]} 14. Nf1 {[%emt 0:06:00]} Re8 {[%emt 0:02:55]} 15. Be3 {[%emt 0:02:46]} h6 {[%emt 0:01:11]} 16. Bxa7 {[%emt 0:01:00]} Rxa7 {[%emt 0:01:23]} 17. Ng3 {[%emt 0:03:30]} Nf4 {[%emt 0:01:30]} 18. Kh2 {[%emt 0:01:13]} Bxh3 {[%emt 0:01:30]} 19. Nf5 {[%emt 0:04:46]} Bxf5 {[%emt 0:02:30]} 20. exf5 {[%emt 0:00:44]} g6 {[%emt 0:05:07]} 21. g3 {[%emt 0:02:11]} N4xd5 {[%emt 0:04:55]} 22. fxg6 {[%emt 0:00:17]} Ng4+ {[%emt 0:01:52]} 23. Kg2 {[%emt 0:01:16]} Ngf6 {[%emt 0:00:25]} 24. gxf7+ {[%emt 0:02:37]} Kxf7 {[%emt 0:03:38]} 25. Be4 {[%emt 0:01:15]} c6 {[%emt 0:02:53]} 26. Bc2 {[%emt 0:01:19]} Rg8 {[%emt 0:04:22]} 27. Kg1 {[%emt 0:02:10]} Ke7 {[%emt 0:04:39]} 28. Nh4 {[%emt 0:01:35]} Qh3 {[%emt 0:05:47]} 29. Ng2 {[%emt 0:02:43]} Nh5 {[%emt 0:00:57]} 30. Qf3 {[%emt 0:01:04]} Nhf4 {[%emt 0:01:05]} 31. Nxf4 {[%emt 0:02:34]} Nxf4 {[%emt 0:01:11]} 32. Qxf4 {[%emt 0:00:23]} Kd8 {[%emt 0:01:48]} 33. Qf6+ {[%emt 0:00:26]} Kc7 {[%emt 0:00:43]} 34. Qf7+ {[%emt 0:00:44]} Kb6 {[%emt 0:00:43]} 35. Qxg8 {[%emt 0:00:10]} Kc5 {[%emt 0:00:25]} 36. b4+ {[%emt 0:00:25]} Kb6 {[%emt 0:00:29]} 37. Qd8+ {[%emt 0:00:15]} Kb5 {[%emt 0:00:19]} 38. Bd3+ {[%emt 0:00:32]} Ka4 {[%emt 0:00:21]} 39. Qa5# {[%emt 0:00:27]} 1-0

[Event "GER-ch Youth U10 2020"]
[Site "Willingen"]
[Date "2020.10.30"]
[Round "6.26"]
[White "Kamleiter, Noah"]
[Black "Gulamzada, Elmir"]
[Result "1-0"]
[ECO "C77"]
[WhiteElo "1573"]
[BlackElo "1397"]
[Annotator "NA RC"]
[PlyCount "101"]
[EventDate "2020.10.27"]
[EventType "swiss"]
[EventRounds "7"]
[EventCountry "GER"]
[SourceTitle "playchess.com"]
[Source "ChessBase"]
[SourceQuality "1"]
[TimeControl "40/4500+30:900+30"]

1. e4 {[%emt 0:00:00]} e5 {[%emt 0:00:00]} 2. Nf3 {[%emt 0:00:00]} Nc6 {[%emt 0:00:27]} 3. Bb5 {[%emt 0:00:00]} a6 {[%emt 0:01:08]} 4. Ba4 {[%emt 0:00:01]} Nf6 {[%emt 0:00:06]} 5. d4 {[%emt 0:00:06]} exd4 {[%emt 0:00:53]} 6. O-O {[%emt 0:00:48]} Be7 {[%emt 0:03:32]} 7. e5 {[%emt 0:00:26]} Ne4 {[%emt 0:01:21]} 8. Re1 {[%emt 0:00:23]} Nc5 {[%emt 0:01:02]} 9. Bxc6 {[%emt 0:00:17]} dxc6 {[%emt 0:00:48]} 10. Nxd4 {[%emt 0:01:15]} O-O {[%emt 0:03:13]} 11. c3 {[%emt 0:01:45]} Ne6 {[%emt 0:16:25]} 12. Be3 {[%emt 0:06:19]} Nxd4 {[%emt 0:01:25]} 13. cxd4 {[%emt 0:02:24]} Bf5 {[%emt 0:06:08]} 14. Qf3 {[%emt 0:01:49]} Bg6 {[%emt 0:03:23]} 15. Nc3 {[%emt 0:01:10]} Qd7 {[%emt 0:09:55]} 16. Rad1 {[%emt 0:00:51]} Qf5 {[%emt 0:01:27]} 17. Qg3 {[%emt 0:03:11]} Rad8 {[%emt 0:09:12]} 18. Rd2 {[%emt 0:07:28]} Bh5 {[%emt 0:03:34]} 19. e6 {[%emt 0:06:54]} Bd6 {[%emt 0:02:29]} 20. exf7+ {[%emt 0:01:22]} Rxf7 {[%emt 0:03:10]} 21. Qh4 {[%emt 0:01:02]} Re8 {[%emt 0:05:56]} 22. Rf1 Qg4 {[%emt 0:01:33]} 23. Qxg4 {[%emt 0:04:10]} Bxg4 {[%emt 0:00:05]} 24. Bg5 {[%emt 0:01:35]} h6 {[%emt 0:00:38]} 25. Bh4 {[%emt 0:00:38]} g5 {[%emt 0:00:53]} 26. Bg3 {[%emt 0:00:07]} Bxg3 27. hxg3 {[%emt 0:02:25]} Rd7 {[%emt 0:01:25]} 28. f3 {[%emt 0:00:25]} Bf5 {[%emt 0:00:40]} 29. Kf2 {[%emt 0:01:45]} Kf7 {[%emt 0:00:58]} 30. Re1 {[%emt 0:04:32]} Rxe1 {[%emt 0:00:27]} 31. Kxe1 {[%emt 0:00:10]} g4 {[%emt 0:00:46]} 32. f4 {[%emt 0:00:57]} h5 {[%emt 0:00:56]} 33. a4 {[%emt 0:02:10]} Be6 {[%emt 0:01:10]} 34. a5 {[%emt 0:00:30]} Bd5 {[%emt 0:00:24]} 35. Na4 {[%emt 0:01:05]} Re7+ {[%emt 0:00:59]} 36. Kf2 {[%emt 0:01:32]} Bc4 {[%emt 0:01:16]} 37. b3 {[%emt 0:03:01]} Bxb3 {[%emt 0:01:47]} 38. Nc5 {[%emt 0:00:30]} Bd5 {[%emt 0:00:54]} 39. Nxb7 {[%emt 0:00:38]} Ke6 {[%emt 0:01:40]} 40. Nc5+ {[%emt 0:00:28]} Kd6 {[%emt 0:01:05]} 41. Nxa6 {[%emt 0:17:05]} Re8 {[%emt 0:16:00]} 42. Nc5 {[%emt 0:00:35]} Ra8 {[%emt 0:01:19]} 43. Re2 {[%emt 0:00:41]} Bc4 {[%emt 0:00:00]} 44. Re5 {[%emt 0:00:00]} Bf7 {[%emt 0:00:00]} 45. Ke3 {[%emt 0:00:00]} Rb8 {[%emt 0:00:00]} 46. f5 {[%emt 0:00:00]} Rb2 {[%emt 0:00:00]} 47. Kf4 {[%emt 0:00:00]} Rxg2 {[%emt 0:00:00]} 48. f6 {[%emt 0:00:00]} Rf2+ {[%emt 0:00:00]} 49. Kg5 {[%emt 0:00:00]} Rf3 {[%emt 0:00:00]} 50. Re7 {[%emt 0:00:00]} Bc4 51. Rd7# 1-0

[Event "GER-ch Youth U10 2020"]
[Site "Willingen"]
[Date "2020.10.30"]
[Round "6.27"]
[White "Uyar, Levin"]
[Black "Allen, Phillipp"]
[Result "1-0"]
[ECO "C23"]
[WhiteElo "1471"]
[BlackElo "1250"]
[Annotator "NA RC"]
[PlyCount "91"]
[EventDate "2020.10.27"]
[EventType "swiss"]
[EventRounds "7"]
[EventCountry "GER"]
[SourceTitle "playchess.com"]
[Source "ChessBase"]
[SourceQuality "1"]
[TimeControl "40/4500+30:900+30"]

1. e4 {[%emt 0:00:00]} e5 {[%emt 0:00:00]} 2. Nf3 {[%emt 0:00:00]} Nc6 {[%emt 0:00:00]} 3. Bc4 {[%emt 0:00:00]} Bc5 {[%emt 0:00:00]} 4. c3 {[%emt 0:00:00]} d6 {[%emt 0:00:01]} 5. d4 {[%emt 0:00:13]} exd4 {[%emt 0:00:05]} 6. cxd4 {[%emt 0:00:11]} Bb6 {[%emt 0:00:16]} 7. O-O {[%emt 0:00:36]} Bg4 {[%emt 0:00:15]} 8. Be3 {[%emt 0:02:28]} Nf6 {[%emt 0:01:58]} 9. Bb5 O-O {[%emt 0:01:00]} 10. Bxc6 {[%emt 0:05:04]} bxc6 11. Nbd2 {[%emt 0:11:56]} Re8 {[%emt 0:02:31]} 12. Qc2 {[%emt 0:03:59]} Bxf3 {[%emt 0:01:55]} 13. Nxf3 {[%emt 0:02:46]} Rxe4 {[%emt 0:03:42]} 14. Qxc6 {[%emt 0:00:43]} Qe8 {[%emt 0:00:31]} 15. Qc2 {[%emt 0:07:54]} Ng4 {[%emt 0:02:37]} 16. Ng5 {[%emt 0:01:13]} Nxe3 {[%emt 0:02:50]} 17. fxe3 {[%emt 0:00:25]} d5 {[%emt 0:01:10]} 18. Nxe4 {[%emt 0:02:52]} Qxe4 {[%emt 0:00:00]} 19. Qxe4 {[%emt 0:00:17]} dxe4 {[%emt 0:00:09]} 20. Rf4 {[%emt 0:00:55]} Re8 {[%emt 0:00:07]} 21. a4 {[%emt 0:00:23]} a5 {[%emt 0:00:08]} 22. Rc1 {[%emt 0:00:28]} g6 {[%emt 0:00:29]} 23. Rc6 {[%emt 0:01:35]} f5 {[%emt 0:00:11]} 24. g4 {[%emt 0:00:37]} Rf8 {[%emt 0:00:18]} 25. Re6 {[%emt 0:01:01]} Kh8 {[%emt 0:00:48]} 26. Rf1 {[%emt 0:01:22]} Kg8 {[%emt 0:00:24]} 27. Kg2 {[%emt 0:02:21]} Kg7 {[%emt 0:01:03]} 28. Re5 {[%emt 0:00:33]} f4 {[%emt 0:02:15]} 29. Rxe4 {[%emt 0:01:28]} fxe3 {[%emt 0:00:36]} 30. Rxf8 Kxf8 {[%emt 0:00:13]} 31. Kf3 {[%emt 0:00:32]} e2 {[%emt 0:00:44]} 32. Kxe2 {[%emt 0:00:09]} Kf7 {[%emt 0:00:06]} 33. Kd3 {[%emt 0:00:14]} g5 {[%emt 0:00:37]} 34. Re5 {[%emt 0:00:20]} Kf6 {[%emt 0:00:17]} 35. Rf5+ {[%emt 0:00:09]} Kg6 {[%emt 0:00:10]} 36. Kc4 {[%emt 0:00:29]} h5 {[%emt 0:00:17]} 37. h3 {[%emt 0:00:07]} hxg4 {[%emt 0:00:32]} 38. hxg4 {[%emt 0:00:12]} Kh6 {[%emt 0:00:21]} 39. d5 {[%emt 0:00:13]} Kg6 {[%emt 0:00:10]} 40. b4 {[%emt 0:00:16]} Kh6 {[%emt 0:00:20]} 41. bxa5 {[%emt 0:15:20]} Bxa5 {[%emt 0:15:11]} 42. Kb5 {[%emt 0:00:12]} Bb6 {[%emt 0:00:06]} 43. Rf6+ {[%emt 0:00:37]} Kg7 {[%emt 0:00:07]} 44. Rxb6 {[%emt 0:00:13]} cxb6 {[%emt 0:00:11]} 45. Kxb6 {[%emt 0:00:08]} Kf6 {[%emt 0:00:04]} 46. d6 1-0

[Event "GER-ch Youth U10 2020"]
[Site "Willingen"]
[Date "2020.10.30"]
[Round "6.28"]
[White "Kutz, Paul Matti"]
[Black "Blumenthal Tuset, Sebastian"]
[Result "0-1"]
[ECO "B01"]
[WhiteElo "1242"]
[BlackElo "1453"]
[Annotator "NA RC"]
[PlyCount "79"]
[EventDate "2020.10.27"]
[EventType "swiss"]
[EventRounds "7"]
[EventCountry "GER"]
[SourceTitle "playchess.com"]
[Source "ChessBase"]
[SourceQuality "1"]
[TimeControl "40/4500+30:900+30"]

1. e4 {[%emt 0:00:00]} d5 {[%emt 0:00:00]} 2. exd5 {[%emt 0:00:13]} Qxd5 {[%emt 0:00:00]} 3. Nc3 {[%emt 0:00:07]} Qd6 {[%emt 0:00:02]} 4. d4 {[%emt 0:00:11]} Nf6 {[%emt 0:00:26]} 5. Bc4 {[%emt 0:00:13]} Bg4 {[%emt 0:00:25]} 6. Nge2 {[%emt 0:00:15]} e6 {[%emt 0:01:18]} 7. h3 {[%emt 0:00:32]} Bh5 {[%emt 0:00:13]} 8. Bf4 {[%emt 0:02:52]} Bxe2 {[%emt 0:04:20]} 9. Bxd6 {[%emt 0:00:20]} Bxd1 {[%emt 0:00:12]} 10. Bxf8 Rxf8 {[%emt 0:00:37]} 11. Rxd1 {[%emt 0:01:05]} c6 {[%emt 0:00:29]} 12. a4 {[%emt 0:01:22]} Nbd7 {[%emt 0:00:43]} 13. O-O {[%emt 0:00:26]} O-O-O {[%emt 0:01:05]} 14. b4 {[%emt 0:00:22]} Nd5 {[%emt 0:09:57]} 15. Bxd5 {[%emt 0:02:01]} exd5 {[%emt 0:00:27]} 16. b5 {[%emt 0:00:27]} Rfe8 {[%emt 0:06:10]} 17. Rb1 {[%emt 0:07:13]} Kc7 {[%emt 0:04:16]} 18. Rb2 {[%emt 0:00:34]} Rb8 {[%emt 0:02:07]} 19. Rfb1 {[%emt 0:04:41]} Kd6 {[%emt 0:03:56]} 20. bxc6 {[%emt 0:03:20]} bxc6 {[%emt 0:00:21]} 21. Rxb8 {[%emt 0:00:16]} Rxb8 {[%emt 0:00:08]} 22. Rxb8 {[%emt 0:00:09]} Nxb8 {[%emt 0:00:07]} 23. Kf1 {[%emt 0:00:04]} a5 {[%emt 0:01:51]} 24. Ke2 {[%emt 0:01:01]} Ke6 {[%emt 0:00:46]} 25. g4 {[%emt 0:00:14]} f5 {[%emt 0:01:02]} 26. gxf5+ {[%emt 0:00:19]} Kxf5 {[%emt 0:00:07]} 27. Kf3 {[%emt 0:01:16]} h5 {[%emt 0:05:07]} 28. h4 {[%emt 0:03:46]} Na6 {[%emt 0:02:08]} 29. Na2 {[%emt 0:03:20]} Nc7 {[%emt 0:03:45]} 30. Nc3 {[%emt 0:00:48]} Ne6 {[%emt 0:00:30]} 31. Ne2 {[%emt 0:00:13]} g5 {[%emt 0:01:26]} 32. Ng3+ {[%emt 0:01:03]} Kg6 {[%emt 0:00:21]} 33. Ne2 {[%emt 0:01:22]} gxh4 {[%emt 0:00:57]} 34. Kg2 {[%emt 0:00:24]} Kg5 {[%emt 0:01:09]} 35. Kh2 {[%emt 0:12:08]} Kg4 {[%emt 0:00:39]} 36. Ng1 {[%emt 0:05:57]} Nxd4 {[%emt 0:01:05]} 37. c3 {[%emt 0:00:37]} Nf3+ {[%emt 0:00:35]} 38. Nxf3 {[%emt 0:00:29]} Kxf3 {[%emt 0:00:05]} 39. Kh1 {[%emt 0:00:12]} Kxf2 {[%emt 0:00:08]} 40. Kh2 0-1

[Event "GER-ch Youth U10 2020"]
[Site "Willingen"]
[Date "2020.10.30"]
[Round "6.29"]
[White "Peters, Lasse"]
[Black "Yin, Vito"]
[Result "1-0"]
[ECO "C45"]
[WhiteElo "1223"]
[BlackElo "1320"]
[Annotator "NA RC"]
[PlyCount "135"]
[EventDate "2020.10.27"]
[EventType "swiss"]
[EventRounds "7"]
[EventCountry "GER"]
[SourceTitle "playchess.com"]
[Source "ChessBase"]
[SourceQuality "1"]
[TimeControl "40/4500+30:900+30"]

1. e4 {[%emt 0:00:00]} e5 {[%emt 0:00:00]} 2. Nf3 {[%emt 0:00:00]} Nc6 {[%emt 0:00:00]} 3. d4 {[%emt 0:00:00]} exd4 {[%emt 0:00:09]} 4. Nxd4 {[%emt 0:00:00]} Bc5 {[%emt 0:01:58]} 5. Be3 {[%emt 0:00:00]} Qf6 {[%emt 0:00:17]} 6. c3 {[%emt 0:00:23]} Qg6 {[%emt 0:00:27]} 7. f3 {[%emt 0:00:26]} Nf6 {[%emt 0:00:47]} 8. Qd2 {[%emt 0:04:07]} Nxd4 {[%emt 0:06:05]} 9. cxd4 {[%emt 0:00:49]} Bb6 {[%emt 0:00:34]} 10. Nc3 {[%emt 0:00:30]} d6 {[%emt 0:03:59]} 11. Bd3 {[%emt 0:01:37]} Nd7 {[%emt 0:03:09]} 12. Rc1 {[%emt 0:01:23]} c5 {[%emt 0:04:00]} 13. d5 {[%emt 0:04:17]} a6 {[%emt 0:01:04]} 14. e5 {[%emt 0:02:32]} f5 {[%emt 0:02:00]} 15. exf6 {[%emt 0:02:41]} Qxf6 {[%emt 0:00:36]} 16. O-O {[%emt 0:03:23]} Ne5 {[%emt 0:04:56]} 17. Ne4 {[%emt 0:01:11]} Qd8 {[%emt 0:05:06]} 18. Bb1 {[%emt 0:06:52]} Qc7 {[%emt 0:02:38]} 19. Kh1 {[%emt 0:08:03]} Bd7 {[%emt 0:10:08]} 20. f4 {[%emt 0:08:04]} Nf7 {[%emt 0:02:49]} 21. Qc3 {[%emt 0:01:59]} g6 {[%emt 0:12:38]} 22. Rfe1 {[%emt 0:07:10]} Ba5 {[%emt 0:02:51]} 23. Nxd6+ {[%emt 0:03:11]} Qxd6 {[%emt 0:05:01]} 24. Qxa5 {[%emt 0:00:43]} O-O {[%emt 0:06:41]} 25. Qxc5 {[%emt 0:05:05]} Qxc5 {[%emt 0:00:21]} 26. Bxc5 {[%emt 0:00:28]} Rfc8 {[%emt 0:01:37]} 27. Bd4 {[%emt 0:00:49]} Nh6 {[%emt 0:03:03]} 28. Rxc8+ {[%emt 0:00:45]} Rxc8 29. h3 {[%emt 0:00:54]} b5 {[%emt 0:02:43]} 30. g4 {[%emt 0:01:04]} Rc4 {[%emt 0:01:37]} 31. Rd1 {[%emt 0:00:41]} a5 {[%emt 0:00:30]} 32. d6 {[%emt 0:01:16]} a4 {[%emt 0:00:56]} 33. a3 {[%emt 0:00:44]} b4 {[%emt 0:01:31]} 34. axb4 {[%emt 0:01:50]} Rxb4 {[%emt 0:00:10]} 35. Ba2+ {[%emt 0:00:28]} Kf8 {[%emt 0:00:29]} 36. Kg2 {[%emt 0:02:18]} Nf7 {[%emt 0:00:25]} 37. Bxf7 {[%emt 0:02:48]} Kxf7 {[%emt 0:00:20]} 38. Be5 {[%emt 0:00:38]} Ke6 {[%emt 0:00:39]} 39. Kg3 {[%emt 0:01:05]} Rb3+ {[%emt 0:00:38]} 40. Kh4 {[%emt 0:00:31]} Rb6 {[%emt 0:00:39]} 41. Kg5 {[%emt 0:15:55]} Kf7 {[%emt 0:16:26]} 42. h4 {[%emt 0:01:25]} Kg8 {[%emt 0:00:00]} 43. h5 {[%emt 0:00:00]} Kf7 {[%emt 0:00:00]} 44. hxg6+ {[%emt 0:00:00]} hxg6 {[%emt 0:00:00]} 45. f5 {[%emt 0:00:00]} gxf5 {[%emt 0:00:00]} 46. gxf5 {[%emt 0:00:00]} Rb5 {[%emt 0:00:00]} 47. Re1 {[%emt 0:00:00]} Rb3 {[%emt 0:00:00]} 48. Rf1 {[%emt 0:00:00]} Rb5 {[%emt 0:00:00]} 49. Re1 {[%emt 0:00:00]} Rb3 {[%emt 0:00:00]} 50. Kf4 {[%emt 0:00:00]} Rb4+ {[%emt 0:00:00]} 51. Re4 {[%emt 0:00:00]} Rb3 {[%emt 0:00:00]} 52. Bc3 {[%emt 0:00:00]} Rb5 {[%emt 0:00:00]} 53. Re7+ {[%emt 0:00:00]} Kf8 {[%emt 0:00:00]} 54. Rxd7 {[%emt 0:00:00]} Rc5 {[%emt 0:00:00]} 55. f6 {[%emt 0:00:00]} Rh5 {[%emt 0:00:00]} 56. Ke4 {[%emt 0:00:00]} Rc5 {[%emt 0:00:00]} 57. Be5 {[%emt 0:00:00]} Rb5 {[%emt 0:00:00]} 58. Kf5 {[%emt 0:00:00]} Rb8 {[%emt 0:00:00]} 59. Ra7 {[%emt 0:00:00]} Rc8 {[%emt 0:00:00]} 60. Rxa4 {[%emt 0:00:00]} Rc2 {[%emt 0:00:00]} 61. b3 {[%emt 0:00:00]} Rf2+ {[%emt 0:00:00]} 62. Ke6 {[%emt 0:00:00]} Kg8 {[%emt 0:00:00]} 63. d7 {[%emt 0:00:00]} Kh7 {[%emt 0:00:00]} 64. d8=Q {[%emt 0:00:00]} Kg6 {[%emt 0:00:00]} 65. Qg8+ {[%emt 0:00:00]} Kh5 {[%emt 0:00:00]} 66. Ra1 {[%emt 0:00:00]} Rxf6+ 67. Kxf6 {[%emt 0:00:00]} Kh4 {[%emt 0:00:00]} 68. Rh1# {[%emt 0:00:00]} 1-0

[Event "GER-ch Youth U10 2020"]
[Site "Willingen"]
[Date "2020.10.31"]
[Round "7.1"]
[White "Herrmann, Jakob"]
[Black "Besou, Hussain"]
[Result "0-1"]
[ECO "B34"]
[WhiteElo "1504"]
[BlackElo "1825"]
[Annotator "NA RC"]
[PlyCount "52"]
[EventDate "2020.10.27"]
[EventType "swiss"]
[EventRounds "7"]
[EventCountry "GER"]
[SourceTitle "playchess.com"]
[Source "ChessBase"]
[SourceQuality "1"]
[TimeControl "40/4500+30:900+30"]

1. e4 {[%emt 0:00:00]} c5 {[%emt 0:00:00]} 2. Nf3 {[%emt 0:00:00]} Nc6 {[%emt 0:00:00]} 3. d4 {[%emt 0:00:55]} cxd4 {[%emt 0:00:00]} 4. Nxd4 {[%emt 0:00:09]} g6 {[%emt 0:00:00]} 5. Nc3 {[%emt 0:00:53]} Bg7 {[%emt 0:00:11]} 6. Be3 {[%emt 0:00:16]} Nf6 {[%emt 0:00:25]} 7. f3 {[%emt 0:03:34]} O-O {[%emt 0:00:42]} 8. Bc4 {[%emt 0:00:50]} Qb6 {[%emt 0:00:33]} 9. Qd2 {[%emt 0:09:33]} (9. Bb3 $11) 9... Nxe4 {[%emt 0:00:06]} 10. fxe4 {[%emt 0:09:59]} Bxd4 {[%emt 0:00:07]} 11. Bxd4 {[%emt 0:00:49]} Qxd4 {[%emt 0:00:29]} 12. Qe2 {[%emt 0:01:47]} a6 {[%emt 0:00:39]} 13. Bd3 {[%emt 0:13:48]} d6 {[%emt 0:00:29]} 14. O-O-O {[%emt 0:00:14]} Qe5 {[%emt 0:00:21]} 15. Rdf1 {[%emt 0:02:58]} (15. h4 $17 {keeps fighting.}) 15... b5 {[%emt 0:00:38]} 16. Kb1 {[%emt 0:06:14]} Be6 {[%emt 0:06:14]} 17. g4 {[%emt 0:08:31]} (17. Rd1 {keeps fighting.}) 17... Nd4 {[%emt 0:03:18]} 18. Qg2 $17 {[%emt 0:00:22]} b4 {[%emt 0:01:49]} 19. Nd1 {[%emt 0:03:00]} a5 {[%emt 0:00:45]} 20. Ne3 {[%emt 0:00:52]} a4 {[%emt 0:01:01]} 21. Bc4 {[%emt 0:09:07]} Bxc4 {[%emt 0:08:07]} 22. Nxc4 {[%emt 0:00:07]} Qe6 {[%emt 0:00:05]} 23. Nb6 {[%emt 0:01:19]} Ra7 {[%emt 0:03:23]} 24. Qd2 {[%emt 0:01:16]} Qxe4 {[%emt 0:01:02]} 25. Re1 {[%emt 0:02:43]} Nf3 {[%emt 0:00:22]} 26. Rxe4 {[%emt 0:02:15]} Nxd2+ {[%emt 0:00:06]} 0-1

[Event "GER-ch Youth U10 2020"]
[Site "Willingen"]
[Date "2020.10.31"]
[Round "7.2"]
[White "Neuhoff, Laertes"]
[Black "Buchinger, Alexis"]
[Result "1-0"]
[ECO "C55"]
[WhiteElo "1655"]
[BlackElo "1496"]
[Annotator "NA RC"]
[PlyCount "119"]
[EventDate "2020.10.27"]
[EventType "swiss"]
[EventRounds "7"]
[EventCountry "GER"]
[SourceTitle "playchess.com"]
[Source "ChessBase"]
[SourceQuality "1"]
[TimeControl "40/4500+30:900+30"]

1. e4 {[%emt 0:00:00]} e5 {[%emt 0:00:00]} 2. Nf3 {[%emt 0:00:00]} Nc6 {[%emt 0:00:00]} 3. d4 {[%emt 0:00:00]} exd4 {[%emt 0:00:00]} 4. Bc4 {[%emt 0:00:14]} Nf6 {[%emt 0:00:02]} 5. e5 {[%emt 0:00:11]} d5 {[%emt 0:00:04]} 6. Bb5 {[%emt 0:00:08]} Nd7 {[%emt 0:00:07]} 7. O-O {[%emt 0:02:23]} Be7 {[%emt 0:00:27]} 8. Bxc6 {[%emt 0:01:35]} bxc6 {[%emt 0:00:06]} 9. Nxd4 {[%emt 0:00:57]} Nb8 {[%emt 0:00:17]} 10. Nc3 {[%emt 0:08:48]} O-O {[%emt 0:00:16]} 11. f4 {[%emt 0:06:57]} f6 {[%emt 0:03:52]} 12. Nf3 {[%emt 0:13:01]} Ba6 {[%emt 0:06:31]} 13. Re1 {[%emt 0:01:03]} Bc5+ {[%emt 0:01:07]} 14. Be3 {[%emt 0:01:47]} Bb4 {[%emt 0:04:24]} 15. a3 {[%emt 0:02:49]} Bxc3 {[%emt 0:01:37]} 16. bxc3 {[%emt 0:00:13]} Bc4 {[%emt 0:02:37]} 17. e6 {[%emt 0:01:24]} Re8 {[%emt 0:02:18]} 18. f5 {[%emt 0:00:26]} Qd6 {[%emt 0:01:49]} 19. Nd2 {[%emt 0:15:10]} Qe5 {[%emt 0:05:48]} 20. Nxc4 {[%emt 0:00:10]} dxc4 {[%emt 0:00:47]} 21. Qf3 {[%emt 0:01:03]} Qxc3 {[%emt 0:01:19]} 22. Rad1 {[%emt 0:01:58]} Qxa3 {[%emt 0:02:50]} 23. e7 {[%emt 0:15:25]} Qxe7 {[%emt 0:02:43]} 24. Bf2 {[%emt 0:00:12]} Qf7 {[%emt 0:00:57]} 25. Rxe8+ {[%emt 0:00:14]} Qxe8 {[%emt 0:00:09]} 26. Qf4 {[%emt 0:02:33]} a5 {[%emt 0:12:15]} 27. Qxc7 {[%emt 0:05:37]} Na6 {[%emt 0:00:55]} 28. Qxa5 {[%emt 0:00:09]} Qe2 {[%emt 0:05:24]} 29. Rd8+ {[%emt 0:01:12]} Rxd8 {[%emt 0:00:50]} 30. Qxd8+ {[%emt 0:00:04]} Kf7 {[%emt 0:00:08]} 31. Qd7+ {[%emt 0:01:03]} Kf8 {[%emt 0:00:40]} 32. h3 {[%emt 0:01:14]} Qe8 {[%emt 0:02:06]} 33. Qb7 {[%emt 0:01:03]} Nb8 {[%emt 0:00:59]} 34. Bc5+ {[%emt 0:00:08]} Kg8 {[%emt 0:00:06]} 35. Bd6 {[%emt 0:00:10]} Nd7 {[%emt 0:01:54]} 36. Qxc6 {[%emt 0:00:32]} h6 {[%emt 0:03:26]} 37. Qxc4+ {[%emt 0:00:21]} Kh7 {[%emt 0:01:54]} 38. Qe6 {[%emt 0:00:54]} Qd8 {[%emt 0:01:48]} 39. Qe7 {[%emt 0:01:07]} Qxe7 {[%emt 0:03:32]} 40. Bxe7 {[%emt 0:00:05]} Ne5 {[%emt 0:00:09]} 41. Kf2 {[%emt 0:15:28]} g6 {[%emt 0:15:31]} 42. Bxf6 {[%emt 0:00:18]} Nd7 {[%emt 0:00:32]} 43. fxg6+ Kxg6 {[%emt 0:00:16]} 44. Bd4 {[%emt 0:00:16]} Kf5 {[%emt 0:00:18]} 45. Ke3 {[%emt 0:00:11]} h5 {[%emt 0:00:41]} 46. c4 {[%emt 0:00:18]} Nb8 {[%emt 0:00:52]} 47. c5 {[%emt 0:00:30]} Nc6 {[%emt 0:00:04]} 48. Bc3 {[%emt 0:00:08]} Kg5 {[%emt 0:00:25]} 49. Kf3 {[%emt 0:00:11]} h4 {[%emt 0:00:38]} 50. Bd2+ {[%emt 0:00:23]} Kf5 {[%emt 0:00:14]} 51. Bc3 {[%emt 0:00:57]} Nb8 {[%emt 0:00:12]} 52. Be1 {[%emt 0:00:21]} Kg5 {[%emt 0:00:10]} 53. Ke4 {[%emt 0:00:05]} Na6 {[%emt 0:00:36]} 54. Kd5 {[%emt 0:00:28]} Nc7+ {[%emt 0:00:26]} 55. Kd6 {[%emt 0:00:07]} Nb5+ {[%emt 0:00:06]} 56. Kd7 {[%emt 0:00:11]} Nd4 {[%emt 0:00:13]} 57. c6 {[%emt 0:00:13]} Nxc6 {[%emt 0:00:13]} 58. Kxc6 {[%emt 0:00:06]} Kh5 {[%emt 0:00:07]} 59. Kd5 {[%emt 0:00:04]} Kg5 {[%emt 0:00:06]} 60. Ke5 {[%emt 0:00:09]} 1-0